Cogmind - Beta 17 @@@ ROGUE MODE // 2026.08.23 @ 12:46:12 Player: ATOM Result: Destroyed by TB-RXJ(x) with Makeshift Spear Performance ------------- Evolutions (0) 0 Regions Visited (3) 600 Robots Destroyed (25) 125 Value Destroyed (689) 689 Prototype IDs (2) 40 Alien Tech Used (0) 0 Bonus (800) 800 TOTAL SCORE: 2254 Bonus ------- Registered with UFD 300 Met Optimus in HQ 500 Cogmind --------- Core Integrity 0/250 Matter 300/300 Energy 272/275 System Corruption 0% Temperature Cool (14) Movement Treading (180) Ox2 Location -7/Scraptown Parts ------- > --- POWER (1) -------- Deuterium Engine > --- PROPULSION (2) --- Overtuned Treads Overtuned Treads > --- UTILITY (2) ------ Large Storage Unit Makeshift Hacking Suite > --- WEAPON (2) ------- Gauss Cannon Makeshift Axe > --- INVENTORY (15) --- Deuterium Engine Deuterium Engine Overtuned Treads Improved Heat Sink Deep Structural Scanner Surveybot 17 Chip Makeshift ECM Suite Makeshift Light Armor Plating Makeshift Light Armor Plating System Shield A0-MCA's Component Scanner Mapping Drone Bay (3/3) Barrage Gun Mini Grenade Launcher DRS Beacon (Ready) Peak State ------------ > --- POWER ------------ Deuterium Engine > --- PROPULSION ------- Overtuned Treads Overtuned Treads > --- UTILITY ---------- Large Storage Unit Makeshift Hacking Suite > --- WEAPON ----------- Gauss Cannon Makeshift Axe > --- INVENTORY -------- Deuterium Engine Deuterium Engine Overtuned Treads Improved Heat Sink Deep Structural Scanner Surveybot 17 Chip Makeshift ECM Suite Makeshift Light Armor Plating Makeshift Light Armor Plating System Shield A0-MCA's Component Scanner Mapping Drone Bay Barrage Gun Mini Grenade Launcher DRS Beacon [Rating: 28] Favorites ----------- Power Light Nuclear Core Engine Deuterium Engine Power Core Light Nuclear Core Propulsion Compact Wheel Treads Light Treads Wheel Compact Wheel Utility Hacking Suite Storage Large Storage Unit Hackware Hacking Suite Weapon EM Pulse Gun Energy Gun EM Pulse Gun Ballistic Gun Assault Rifle Ballistic Cannon Gauss Cannon Launcher Grenade Launcher Impact Weapon Hammer Slashing Weapon Makeshift Axe Build | -11 -10 -10 -7 ------- Run | Yrd Mat Sub Scr Slots Evolved . | . . . . Power . | . . . . Propulsion . | . . . . Utility . | . . . . Weapon . | . . . . Parts Attached 24 | 6 9 . 9 Power 3 | 1 1 . 1 Engine 2 | 1 . . 1 Core 1 | . 1 . . Reactor . | . . . . Propulsion 10 | 2 3 . 5 Treads 7 | 2 . . 5 Leg . | . . . . Wheel 3 | . 3 . . Hover . | . . . . Flight . | . . . . Utility 5 | 1 3 . 1 Device . | . . . . Storage 3 | 1 2 . . Processor . | . . . . Hackware 2 | . 1 . 1 Protection . | . . . . Artifact . | . . . . Weapon 6 | 2 2 . 2 Energy Gun 1 | 1 . . . Energy Cannon . | . . . . Ballistic Gun 1 | 1 . . . Ballistic Cannon 1 | . . . 1 Launcher 1 | . 1 . . Special Weapon . | . . . . Impact Weapon 1 | . 1 . . Slashing Weapon 1 | . . . 1 Piercing Weapon . | . . . . Special Melee Weapon . | . . . . Unidentified Prototypes . | . . . . Parts Lost 3 | . 3 . . Power . | . . . . Propulsion 2 | . 2 . . Utility . | . . . . Weapon 1 | . 1 . . Highest Loss Streak 2 | . 2 . . To Critical Strikes . | . . . . Average Backups 11 | 1 9 11 13 Power 2 | . 2 2 2 Propulsion 1 | . 1 1 . Utility 4 | . 3 4 6 Weapon 3 | . 2 4 4 Tool/Special . | . . . . Unused Backups 29 | . 3 1 25 Power 5 | . . . 5 Propulsion 3 | . 2 . 1 Utility 14 | . 1 1 12 Weapon 7 | . . . 7 Tool/Special . | . . . . Average Slot Usage (%) 86 | . 98 100 78 Engine 7 | . 9 . 6 Core 7 | . 4 14 7 Treads 6 | . 15 . 2 Wheel 21 | . 12 28 25 Storage 14 | . 14 14 14 Hackware 13 | . 13 14 14 Energy Gun 3 | . 10 . . Ballistic Gun 3 | . 8 . . Ballistic Cannon 2 | . . . 3 Launcher 2 | . 2 14 . Impact Weapon 2 | . 4 14 . Slashing Weapon 1 | . . . 3 Peak Build Rating 28 | 6 12 12 28 Average Rating 12 | 4 10 12 14 On Entrance 7 | . 6 12 12 Avg Prop Armor Cover (%) 11 | . 12 . 11 Naked Turns . | . . . . Heaviest Build 39 | 12 30 30 39 Greatest Support 40 | 40 40 32 36 Greatest Overweight (x) 2 | . 1 . 2 Average Overweight (x) . | . . . . Largest Inventory Capacity 15 | 8 15 15 15 Average Capacity 14 | 6 13 15 15 Most Carried 15 | 3 12 13 15 Average Carried 12 | 1 9 11 14 Final Capacity 15 | 8 15 15 15 Final Carried 15 | 3 11 12 15 Class Distribution -------------------- 100% | Mutant Dominant Class ---------------- Mutant | -10/Materials Mutant | -10/Subcaves Mutant | -7/Scraptown Resources | -11 -10 -10 -7 ----------- Run | Yrd Mat Sub Scr Matter Collected 778 | 237 395 . 146 Remotely . | . . . . Salvage Created 729 | . 638 . 91 Parts 47 | . 45 . 2 Haulers Intercepted . | . . . . Recyclers Shooed . | . . . . Parts Field Recycled . | . . . . Retrieved Matter . | . . . . Parts Self-Destructed 10 | . . 10 . Prevented . | . . . . Parts Restored . | . . . . Kills | -11 -10 -10 -7 ------- Run | Yrd Mat Sub Scr Combat Hostiles Destroyed 19 | . 17 . 2 Melee 1 | . 1 . . Guns 13 | . 13 . . Cannons 2 | . . . 2 AOE 2 | . 2 . . Classes Destroyed 6 | . 5 . 1 Worker 1 | . 1 . . Operator 2 | . 2 . . Watcher 3 | . 3 . . Swarmer 4 | . 4 . . Grunt 13 | . 13 . . Explorer 2 | . . . 2 Best Kill Streak 4 | . 4 . 1 Combat Bots Only 3 | . 3 . 1 Max Kills in Single Turn 1 | . 1 . 1 Gunslinging . | . . . . Exploded 1 | . 1 . . Melee 1 | . 1 . . Uniques/NPCs Destroyed . | . . . . Combat | -11 -10 -10 -7 -------- Run | Yrd Mat Sub Scr Hostile Shots Fired 146 | . 116 . 30 Missed 40 | . 31 . 9 Hits 106 | . 85 . 21 Melee 1 | . . . 1 Projectile 105 | . 85 . 20 Critical Strikes 1 | . 1 . . Damage Taken 1068 | . 841 . 227 Core 274 | . 233 . 41 Absorbed by Shields . | . . . . Regen/Repaired (Parts) 34 | . 34 . . Core Remaining (%) 100 | 100 . . . Volleys Fired 80 | . 74 . 6 Largest 2 | . 2 . 1 Hottest 60 | . 60 . 40 Shots Fired 139 | . 133 . 6 Gun 122 | . 122 . . Cannon 6 | . . . 6 Launcher 11 | . 11 . . Special . | . . . . Kinetic 65 | . 59 . 6 Thermal . | . . . . Explosive 11 | . 11 . . Electromagnetic 63 | . 63 . . Robot Hit Streak 7 | . 7 . 3 Robot Miss Streak 6 | . 6 . 1 Penetration Max . | . . . . Secondary Targets 1 | . 1 . . Max Gunslinging Chain 1 | . 1 . . Shots Hit Robots 72 | . 68 . 4 Core Hits 42 | . 40 . 2 Critical Kills . | . . . . Critical Parts Destroyed 1 | . 1 . . Critical Strikes 3 | . 2 . 1 Blast 1 | . . . 1 Corrupt 1 | . 1 . . Smash 1 | . 1 . . Melee Attacks 8 | . 8 . . Impact 8 | . 8 . . Slashing . | . . . . Piercing . | . . . . Sneak Attacks . | . . . . Combat Hostiles . | . . . . Follow-up Attacks . | . . . . Damage Inflicted 1440 | . 1327 . 113 Guns 798 | . 798 . . Cannons 113 | . . . 113 Explosions 356 | . 356 . . Melee 173 | . 173 . . Ramming . | . . . . Kinetic 467 | . 354 . 113 Thermal . | . . . . Explosive 356 | . 356 . . Electromagnetic 444 | . 444 . . Impact 173 | . 173 . . Slashing . | . . . . Piercing . | . . . . Highest Corruption . | . . . . Average Corruption . | . . . . Corruption Purged . | . . . . Corruption Blocked . | . . . . Overload Shots . | . . . . Overflow Damage 57 | . 57 . . Projectiles . | . . . . Explosions 25 | . 25 . . Melee 32 | . 32 . . Knockbacks 2 | . 1 . 1 Impact 1 | . 1 . . Kinetic 1 | . . . 1 Secondary . | . . . . Self-Inflicted Damage . | . . . . Shots . | . . . . Rammed . | . . . . Targets Rammed . | . . . . Kicked . | . . . . Crushed . | . . . . Highest Temperature 61 | . 61 . 8 Average Temperature 23 | . 25 . 3 Received Heat Transfer 342 | . 294 . 48 Siege Activations . | . . . . Martial Activations . | . . . . Shielding Activations . | . . . . Robots Disrupted . | . . . . Combat Hostiles . | . . . . Robots Corrupted 1 | . 1 . . Combat Hostiles 1 | . 1 . . Parts Fried 2 | . 2 . . Impact Corruptions 1 | . 1 . . Robots Melted . | . . . . Combat Hostiles . | . . . . Parts Melted . | . . . . Heat Transferred . | . . . . Parts Sabotaged . | . . . . Parts Stolen . | . . . . Parts Stripped . | . . . . Power Chain Reactions . | . . . . Alert | -11 -10 -10 -7 ------- Run | Yrd Mat Sub Scr Maximum Alert Level . | . . . . Low Security (%) 100 | 100 100 . . Level 1 . | . . . . Level 2 . | . . . . Level 3 . | . . . . Level 4 . | . . . . Level 5 . | . . . . High Security . | . . . . Max Security . | . . . . Peak Influence 148 | . 148 . . Initial . | . . . . Average 50 | . 53 . . Influence Increases 574 | . 574 . . Destroy 0b10 Robot/C 340 | . 340 . . Destroy 0b10 Robot/NC 30 | . 30 . . Destroy Leader 86 | . 86 . . Successful Hack 24 | . 24 . . Disable Machine 30 | . 30 . . Destroy Structure 64 | . 64 . . Influence Decreases 574 | . 435 139 . Entered New Map 67 | . . 67 . Time Decay 477 | . 405 72 . Lost Part 30 | . 30 . . Squads Dispatched 5 | . 5 . . Investigation 2 | . 2 . . Extermination . | . . . . Reinforcement 3 | . 3 . . Assault . | . . . . Garrison . | . . . . Intercept . | . . . . Searches Triggered . | . . . . Construction Impeded . | . . . . Haulers Reinforced . | . . . . Active Scanning Responses . | . . . . Cargo Convoy Interrupts . | . . . . Stealth | -11 -10 -10 -7 --------- Run | Yrd Mat Sub Scr Distress Signals 2 | . 2 . . Communications Jammed . | . . . . Distress Signals . | . . . . Times Spotted 45 | . 26 . 19 Peak Tracking Total 12 | . 3 . 12 Tactical Retreats . | . . . . Traps | -11 -10 -10 -7 ------- Run | Yrd Mat Sub Scr Traps Triggered 1 | . 1 . . Indirectly . | . . . . Trap Hack Attempts . | . . . . Triggered . | . . . . Disarmed 4 | . 4 . . Reprogrammed . | . . . . Reused . | . . . . Traps Extracted . | . . . . Installed . | . . . . Triggered . | . . . . Most Traps Carried 1 | . . 1 1 Machines | -11 -10 -10 -7 ---------- Run | Yrd Mat Sub Scr Machines Disabled 2 | . 2 . . Max in Single Turn 1 | . 1 . . Machines Repaired . | . . . . Machines Dismantled . | . . . . Machines Sabotaged . | . . . . Overloaded Fab Kills . | . . . . Hacking | -11 -10 -10 -7 --------- Run | Yrd Mat Sub Scr Machines Accessed 9 | . 8 . 1 Terminals 5 | . 5 . . Fabricators . | . . . . Repair Stations 1 | . 1 . . Recycling Units 2 | . 2 . . Scanalyzers . | . . . . Garrison Access . | . . . . Total Hacks 26 | . 21 . 5 Successful 17 | . 12 . 5 Failed 9 | . 9 . . Catastrophic . | . . . . Database Lockouts . | . . . . Manual . | . . . . Terminals 16 | . 16 . . Fabricators . | . . . . Repair Stations 3 | . 3 . . Recycling Units 2 | . 2 . . Scanalyzers . | . . . . Garrison Access . | . . . . Terminal Hacks 13 | . 8 . 5 Robot Analysis 5 | . . . 5 Prototype ID Bank 1 | . 1 . . Alert Level 1 | . 1 . . Locate Traps 1 | . 1 . . Disarm Traps 1 | . 1 . . Dispatch Records 2 | . 2 . . Hauler Manifests 1 | . 1 . . Zone Layout 1 | . 1 . . Fabricator Hacks . | . . . . Repair Station Hacks 2 | . 2 . . Scan Component 1 | . 1 . . Repair 1 | . 1 . . Recycling Unit Hacks 2 | . 2 . . Report Inventory 2 | . 2 . . Scanalyzer . | . . . . Garrison Access Hacks . | . . . . Unauthorized Hacks . | . . . . Terminals . | . . . . Fabricators . | . . . . Repair Stations . | . . . . Recycling Units . | . . . . Scanalyzers . | . . . . Garrison Access . | . . . . Data Cores Recovered . | . . . . Used . | . . . . Hacking Detections 5 | . 5 . . Full Trace Events 2 | . 2 . . Feedback Events . | . . . . Feedback Blocked . | . . . . Robot Schematics Acquired . | . . . . Robots Built . | . . . . Authchips . | . . . . Time . | . . . . Total Robot Build Rating . | . . . . Part Schematics Acquired . | . . . . Parts Built . | . . . . Authchips . | . . . . Time . | . . . . Total Part Build Rating . | . . . . Part Studies Acquired . | . . . . Parts Repaired 1 | . 1 . . Time 26 | . 26 . . Parts Recycled . | . . . . Recycled Matter . | . . . . Retrieved Matter . | . . . . Retrieved Components . | . . . . Parts Scanalyzed . | . . . . Part Schematics Acquired . | . . . . Parts Damaged . | . . . . Bothacking | -11 -10 -10 -7 ------------ Run | Yrd Mat Sub Scr Used RIF Installer . | . . . . Robots Hacked . | . . . . Non-combat . | . . . . Combat . | . . . . Robot Hacks Applied . | . . . . Relay Couplers Released . | . . . . Fabnet Peak Effective % . | . . . . Robots Rewired . | . . . . Allies Hacked . | . . . . Hacks Repelled . | . . . . Allies | -11 -10 -10 -7 -------- Run | Yrd Mat Sub Scr Total Allies . | . . . . Largest Group . | . . . . Highest-Rated Group . | . . . . Highest-Rated Ally . | . . . . Total Orders . | . . . . Ally Attacks . | . . . . Total Damage . | . . . . Kills . | . . . . Allies Corrupted . | . . . . Allies Melted 7 | . . . 7 Intel | -11 -10 -10 -7 ------- Run | Yrd Mat Sub Scr Active Infowar (turns) . | . . . . Robot Analysis Total 5 | . . . 5 Derelict Logs Recovered 1 | . . 1 . Drone Launches . | . . . . Drone Recoveries . | . . . . Exploration | -11 -10 -10 -7 ------------- Run | Yrd Mat Sub Scr Turns Passed 4516 | 86 1559 296 2575 Spaces Moved 3615 | 47 900 285 2383 Core 3 | 3 . . . Treads 489 | 44 336 . 109 Legs . | . . . . Wheels 3123 | . 564 285 2274 Hover . | . . . . Flight . | . . . . Fastest Speed 50 | 50 100 100 100 Average Speed 110 | 152 124 100 105 Slowest Speed 180 | 160 160 100 180 Overloaded Moves . | . . . . Propulsion Burnouts . | . . . . Robots Hopped . | . . . . Potential Cave-ins . | . . . . Cave-ins Triggered . | . . . . Exploration Rate (%) 52 | 4 96 21 90 Regions Visited 3 Branch Regions 2 Pre-discovered Areas . | . . . . Known Exits Taken . | . . . . Unknown Exits Taken 3 | 1 1 1 . Scrap Searched 6 | . . 3 3 Spaces Dug . | . . . . Terrain Destroyed 90 | . 90 . . Melee . | . . . . Projectile . | . . . . AOE 90 | . 90 . . Terrain Rammed . | . . . . Walls Destroyed . | . . . . Machines Disabled . | . . . . Actions | -11 -10 -10 -7 --------- Run | Yrd Mat Sub Scr Total 3998 | 61 1190 296 2451 Wait 186 | . 174 9 3 Move 3612 | 46 899 284 2383 Hop . | . . . . Pick Up 52 | 9 19 2 22 Fast Attach 1 | . . . 1 Attach 13 | 6 5 . 2 Detach 2 | . . . 2 Swap 13 | . 5 . 8 Drop 30 | . 6 1 23 Fire 80 | . 74 . 6 Melee 8 | . 8 . . Ram . | . . . . Kick . | . . . . Crush . | . . . . Escape Stasis . | . . . . Rewire 1 | . . . 1 Trap . | . . . . Miscellaneous . | . . . . Route ------- -11/Scrapyard -10/Materials (discovered 5 exits: [*Mat x3] / [*Min] / [*Sub]) -10/Subcaves -7/Scraptown (discovered 2 exits: *Fac x2) History --------- Turn | Location | Event 5 | -11/Scrapyard | Discovered new exit (range 16) 87 | -11/Scrapyard | Entered Materials 88 | -10/Materials | Met a group of wandering Federalists 258 | -10/Materials | Discovered new exit (range 6) 318 | -10/Materials | Build established: Mutant 486 | -10/Materials | Discovered new exit (range 13) 835 | -10/Materials | Core integrity fell below 50% 938 | -10/Materials | Discovered new exit (range 3) 997 | -10/Materials | Repaired EM Pulse Gun 1255 | -10/Materials | Discovered new exit (range 12) 1304 | -10/Materials | Core integrity fell below 20% 1522 | -10/Materials | Discovered new exit (range 15) 1646 | -10/Materials | Entered Subcaves 1647 | -10/Subcaves | Continued accompanying wandering Federalists (5) 1647 | -10/Subcaves | Approached by a straggling Scientist 1769 | -10/Subcaves | Learned Materials terminal intel 1848 | -10/Subcaves | A swath of the cavern ceiling suddenly collapsed 1909 | -10/Subcaves | Wandering Federalist uncovered a shortcut to Scraptown 1942 | -10/Subcaves | Entered Scraptown 2086 | -7/Scraptown | Visited Spacefarers 2167 | -7/Scraptown | Visited Cyclists 2185 | -7/Scraptown | Visited Scrapoid Research Area 2203 | -7/Scraptown | Visited SPCMW 2226 | -7/Scraptown | Visited Shadow of the Wyrm 2284 | -7/Scraptown | Visited The Evicted 2315 | -7/Scraptown | Visited UFD Registry 2447 | -7/Scraptown | Discovered new exit (range 3) 2652 | -7/Scraptown | Visited Supply Room 3270 | -7/Scraptown | Registered with UFD as "Technobucket" 3545 | -7/Scraptown | Visited A0-MCA Data Center 3551 | -7/Scraptown | Given a B- rating by A0-MCA 3557 | -7/Scraptown | Found A0-MCA's Component Scanner 3586 | -7/Scraptown | Visited Analyses Database 3620 | -7/Scraptown | Visited Science Guys 3674 | -7/Scraptown | Visited Research Penetration Think Tank 3702 | -7/Scraptown | Visited Abandonware Association 3731 | -7/Scraptown | Visited Derelict Rescue Squad 3738 | -7/Scraptown | Found DRS Beacon 3766 | -7/Scraptown | Visited Chapter 10 3797 | -7/Scraptown | Visited Observation Area 3837 | -7/Scraptown | Visited Cartography Club 3887 | -7/Scraptown | Found Surveybot 17 Chip 3994 | -7/Scraptown | Found Deep Structural Scanner 4128 | -7/Scraptown | Met Optimus 4128 | -7/Scraptown | Accepted into 0bPrime 4270 | -7/Scraptown | Civil war broke out across Scraptown 4344 | -7/Scraptown | Identified exit to Factory 4356 | -7/Scraptown | Lost 6 allies 4504 | -7/Scraptown | Optimus destroyed in the chaos of civil war 4517 | -7/Scraptown | Destroyed by TB-RXJ(x) with Makeshift Spear Last Messages --------------- Ovr. Titanium Leg. 04447_ XT-800(x) knocked back. 04451_ XT-800(x) destroyed. 04457_ Acquired 24 matter. 04458_ Bolt penetrates Optimus. 04466_ Ovr. Treads suddenly begins malfunctioning. 04484_ Bolt penetrates AD-FET(E). 04484_ AD-FET(E) destroyed. 04488_ Bolt penetrates M4-PFU(E). 04489_ AB-4YX(j): "0bPrime holds too much power!" 04492_ Bolt penetrates Wall. 04495_ Penetrated by Bolt. 04504_ ANNOUNCEMENT: The traitor Optimus has been dealt with. Put down any remaining collaborators. 04508_ Penetrated by Bolt. 04514_ Bolt penetrates Wall. 04516_ Penetrated by Bolt. Map ----- +----------------------------------------------------+ | ## ##########"" """"#####????????????????????? | | ?## ##????????#" $"#????????????????????????? | | #?# #########?#" ""#????????????????????????? | | #?# """"""""#?#" """#????????????????????????? | | ### " ""#?#" """#????????????????????????? | | """ "#?#"""""""#??????????##?##########?? | | """ " ""#?#######????????????# ?# # #?? | | " """"""""#????????????????????# ## # # #####? | | ##"""####????#########???????# # ##### #? | | " " ######???????#""""""""""#????# # # # #? | | " #?########???#""""""""""#????## #### ## # #? | | """ #?# # # #???#""" """"""#?????# # ""# ]#? | | ### ### " " ##??#"[= """ ""#?????# # #### #? | | ??# ##" "#??#"[! " "#?????# # ##"" ## #? | | ### ## #??#< " ""#????# # # #? | | ## #??#< " ""#????######" ""####? | | ## #??#<< """#????# %! #? | | ### ## #??#<< " """#????# !!& #? | | ?# ## #??#"<= ""#????########=!=###? | | ### ### ##;;########=##########???????###=[%[### | | # % %= !*%* #???????# !!*[""" | | # [ ===!*=!! #???????#" *[ | | # j !!=[!%*= #???????#" !%! | | %j!!*[g!pj=[ #???????#" = | | # !%j!%h%!!= #???????#" ! | | # #################px@! #???#####" !% | | # # """ """ ?????#%%! #???#"""" """ | | # # " """"" #???#=!! = #???#""" """ | | # # """ #???#!%*!%! #???#""" ==! ""# | | # #???#=!% %* #???#"""" =%[ # | | # # "#???# ![ = !#???#"""" [%!%= # | | # # ""#???# [%###?#"""" !%=% # | | # # """ "#???# !!"#"#""""[!!* = # | | # # """"" ""#???# " ""#""""!=!= !# | | # # """ "#???# "#######*!%[* ""% | | # #############???# #;#?????#[=%! ""[ | | # #???????????????# #########%%=!! "# | | #???????????????# j !%*%*!=!%[[*! ""# | | # #???????????????# !!!=[!%!!![=* ""# | | # #??????????????## !!=%=[ %[[%!%""# | | # #??????????????#" [!![=! =%!%!= =!!/!!!""# | | # ################# !%%!%*!%**!=!= % !*=%""# | | # %!=![!%!=! !!=[! [%=[ "" | | # !%!%=!!!*==!=%!%!= =!%[" ! | | # * !% ! !!%==!=%! ! =! ! | | # * ! ! !%%[[ *[*!=% | | # %%[ = = | | = * != =% #""""# [=!= | | % !![ !! [%!#????#" !%%*% | | = *%= !% #????#"""" [= | +----------------------------------------------------+ Best States ------------- Heat Dissipation 25 Energy Generation 14 Energy Capacity 275 Matter Stores 300 Matter Capacity 300 Sight Range 16 Terrain Scan Density 10 Evasion (%) 40 Recoil Reduction 2 Offensive Hacking 11 Item Schematics ----------------- None Robot Schematics ------------------ None Fabricated ------------ Nothing Repaired ---------- EM Pulse Gun | 24% | -10/Materials Studied --------- None Alien Tech Used ----------------- None Achievements -------------- Armchair Analyst Link The Feds Strength In Numbers Challenges ------------ None Game ------ Seed OmegaCoolantAccelerator Manual? 0 Play Time 01:06:04 Cumulative 27.2 hours Start 2026.08.23 @ 11:06:09 End 2026.08.23 @ 12:46:12 Sessions 3 Manual Loads 0 Difficulty Rogue Special Mode None Game No. 40 Rogue 40 Adventurer 0 Explorer 0 Win Type - Total 0 Types 0/0/0/0/0/0/0/0/0/0 Lore% 14 Gallery% 18 Achievement% 18 Wizard Run 0 Options --------- Layout 1 ASCII 0 Keyboard 0 Movement Mouse Keybinds 0 Fullscreen 1 Font 16/SmallcapsGlow Map View 50x40 Zoom Use 0% Tactical HUD 1 Map Filters NONE Filters NONE Steam SD RUN: bddbfd91-ce1d-417b-88ad-692ebed11c81